bitfinex/quotes_ETHUSD_20250403
["timestamp","ask_amount","ask_price","bid_price","bid_amount"]
[1743684263229,5.66475,1765.3,1764.1,0.05]
[1743684263416,5.66624,1764.9,1764.1,0.05]
[1743684263726,2.88417985,1766.1,1764.1,0.05]
[1743684263727,5.66422,1765.5,1764.5,5.6671]
[1743684264093,5.66268,1766.0,1764.5,0.8766]
[1743684264297,2.84854025,1766.5,1763.8,0.8766]
[1743684264535,5.66633,1764.9,1764.0,5.66869]
[1743684264828,5.6643,1765.5,1764.1,0.8766]
[1743684265030,5.65995,1766.8,1765.1,5.66513]
[1743684265232,5.6618,1766.3,1765.4,5.66424]
[1743684265443,5.70986,1766.9,1766.0,5.66251]
[1743684265752,0.05,1766.9,1766.8,5.65995]
[1743684266037,0.05,1767.9,1766.4,46.43904]
[1743684266241,0.05,1767.9,1766.4,45.421904]
[1743684266447,0.05,1767.9,1766.9,5.65938]
[1743684266653,5.65867,1767.2,1766.5,5.66071]
[1743684266800,5.65758,1767.6,1766.1,0.7759]
[1743684266999,5.65674,1767.8,1766.7,5.66007]
[1743684267244,5.65799,1767.5,1766.8,5.65972]
[1743684267447,5.65884,1767.2,1766.1,0.7759]
[1743684267610,5.65691,1767.8,1766.1,3.7759]
[1743684267813,0.05,1767.9,1766.9,5.65962]
[1743684268018,0.05,1767.9,1767.5,5.65751]
[1743684268198,0.05,1767.9,1767.0,40.603]
[1743684268199,0.05,1767.9,1767.8,5.65674]
[1743684268396,5.65407,1768.7,1768.0,5.65584]
[1743684268701,5.70344,1768.9,1767.4,5.65783]
[1743684268896,0.05,1768.9,1768.4,5.65454]
[1743684269101,0.05,1768.9,1768.1,40.765]
[1743684269302,0.05,1768.9,1768.3,5.65494]
[1743684269547,0.05,1768.9,1768.1,40.765]
[1743684269749,0.05,1768.9,1768.3,5.65494]
[1743684269949,0.05,1768.9,1768.6,0.8651]
[1743684270150,5.70023,1769.9,1768.6,0.8651]
[1743684270333,5.6532,1769.0,1768.6,0.8651]
[1743684270538,5.65365,1768.8,1768.6,0.8651]
[1743684270702,5.65035,1769.8,1768.6,0.8651]
[1743684271014,5.65096,1769.7,1768.9,5.653]
[1743684271204,0.05,1769.9,1768.6,0.8651]
[1743684271412,5.65156,1769.5,1768.7,5.65359]
[1743684271734,5.65083,1769.7,1769.0,5.6529]
[1743684271933,5.651,1769.6,1769.0,5.6529]
[1743684272130,5.70033,1769.9,1769.2,5.65225]
[1743684272317,0.05,1769.9,1769.8,5.65035]
[1743684272524,5.64756,1770.7,1769.4,0.8484]
[1743684272756,0.05,1770.9,1769.4,0.8484]
[1743684272919,0.05,1770.9,1770.8,5.64716]
[1743684273336,0.05,1771.9,1770.9,5.64684]
[1743684273517,0.55,1771.4,1770.5,40.742]
[1743684273704,0.05,1771.9,1770.7,5.64748]
[1743684274038,0.05,1771.9,1770.8,0.55]
[1743684274262,0.05,1771.9,1771.1,3.0]
[1743684274458,0.05,1771.9,1770.9,3.0]
[1743684274748,0.05,1771.9,1771.3,5.64553]
[1743684274952,0.05,1771.9,1771.4,5.64521]
[1743684275133,0.05,1771.9,1771.0,5.64652]
[1743684275134,5.64443,1771.7,1771.0,5.64651]
[1743684275339,0.05,1771.9,1770.6,0.8768]
[1743684275539,5.64644,1771.1,1770.4,5.64822]
[1743684275712,5.69368,1771.9,1770.7,5.64731]
[1743684275915,0.05,1771.9,1770.6,5.6478]
[1743684276135,0.05,1771.9,1770.8,5.64688]
[1743684276332,5.64424,1771.8,1771.1,5.64602]
[1743684276533,5.64464,1771.6,1770.8,5.64688]
[1743684276731,5.64415,1771.8,1770.7,40.709]
[1743684277005,5.64636,1771.1,1770.4,5.6482]
[1743684277207,5.64812,1770.5,1769.9,5.65002]
[1743684277414,5.64894,1770.3,1769.6,5.65078]
[1743684277636,5.64894,1770.3,1769.3,46.36094]
[1743684277637,5.64767,1770.7,1769.3,40.709]
[1743684277837,3.0,1770.7,1769.3,40.709]
[1743684278024,5.64882,1770.3,1769.7,5.65053]
[1743684278237,5.64876,1770.3,1769.3,40.709]
[1743684278440,5.64931,1770.2,1769.1,0.05]
[1743684278619,5.64975,1770.0,1769.3,0.8656]
[1743684278819,5.65001,1770.0,1769.1,0.05]
[1743684279018,5.65025,1769.9,1768.5,43.0721165]
[1743684279250,3.0,1769.9,1768.6,5.65418]
[1743684279457,6.1989,1770.3,1769.5,5.65112]
[1743684279622,5.64907,1770.2,1769.1,5.65232]
[1743684279847,5.64907,1770.2,1768.5,37.4178565]
[1743684279848,5.64716,1770.8,1768.5,37.4178565]
[1743684280066,5.64921,1770.2,1769.4,5.65146]
[1743684280266,5.64921,1770.2,1769.0,3.0]
[1743684280267,5.64894,1770.3,1769.0,8.65271]
[1743684280440,5.64894,1770.3,1769.6,5.65094]
[1743684280842,5.64753,1770.7,1770.0,5.64957]
[1743684281093,5.64753,1770.7,1769.3,5.65194]
[1743684281094,5.64812,1770.5,1768.8,1.0206]
[1743684281239,5.64953,1770.1,1769.3,5.65166]
[1743684281439,5.65018,1769.9,1769.1,5.65231]
[1743684281690,5.64972,1770.0,1768.8,6.67411]
[1743684281691,5.64972,1770.0,1769.3,5.65194]
[1743684281890,6.19902,1770.3,1768.8,1.0206]
[1743684281891,0.55,1770.3,1768.8,1.0206]
[1743684282038,5.64963,1770.1,1768.8,1.0206]
[1743684282244,5.65166,1769.4,1768.8,1.0206]
[1743684282445,5.65127,1769.6,1768.8,1.0206]
[1743684282641,5.65246,1769.2,1768.8,1.0206]
[1743684282857,11.30502,1769.2,1768.8,1.0206]
[1743684283058,5.65197,1769.3,1768.8,1.0206]
[1743684283352,5.65325,1768.9,1768.3,1.039]
[1743684283555,5.65291,1769.0,1768.3,1.039]
[1743684283765,5.65254,1769.2,1768.5,5.65426]
[1743684283967,5.65287,1769.1,1768.4,5.65482]
[1743684284167,5.65195,1769.3,1768.6,5.65405]
[1743684284356,5.65247,1769.2,1768.4,11.30947]
[1743684284557,5.65247,1769.2,1768.5,5.65429]
[1743684284849,5.65262,1769.1,1768.4,5.65465]
[1743684285379,5.6516,1769.5,1768.5,0.05653244]
[1743684285678,5.64962,1770.1,1769.3,5.65168]
[1743684285852,5.64876,1770.3,1769.4,0.05650437]
[1743684286053,5.64846,1770.4,1769.6,5.65097]
[1743684286291,6.75927,1770.9,1769.5,5.65131]
[1743684286292,5.64921,1770.2,1769.5,5.65131]
[1743684286586,5.65272,1769.1,1768.5,1.0971]
[1743684286792,5.65242,1769.2,1768.5,1.0971]
[1743684286960,5.65407,1768.7,1768.0,6.75313]
[1743684287291,5.65365,1768.8,1768.1,5.70561]
[1743684287495,5.64897,1770.3,1768.2,0.05654112]
[1743684287649,5.65195,1769.3,1768.3,5.65491]
[1743684287846,5.65291,1769.0,1768.3,5.65491]
[1743684288060,5.6533,1768.9,1768.3,5.65491]
[1743684288256,5.65291,1769.0,1768.4,0.05653824]
[1743684288457,0.55,1769.4,1768.4,0.05653824]
[1743684288657,5.6543,1768.6,1768.1,0.10654087]
[1743684288955,5.65387,1768.7,1768.1,0.05]
[1743684289161,0.55,1769.5,1768.1,0.05]
[1743684289363,5.6537,1768.8,1768.1,5.70572]
[1743684289561,5.65264,1769.1,1768.4,5.65471]
[1743684289857,5.65163,1769.4,1768.1,0.05]
[1743684290197,5.65309,1769.0,1768.3,5.65495]
[1743684290350,5.65219,1769.3,1768.5,5.65423]
[1743684290550,5.6523,1769.2,1768.6,0.05653247]
[1743684290843,5.65281,1769.1,1768.4,5.65464]
[1743684291047,5.65192,1769.4,1768.7,5.65386]
[1743684291281,11.30233,1769.6,1768.9,5.65321]
[1743684291469,5.65111,1769.6,1769.0,0.05651935]
[1743684291981,5.65042,1769.8,1769.1,5.65258]
[1743684292181,5.65042,1769.8,1769.2,0.0565158]
[1743684292399,5.65527,1768.3,1767.2,1.0956]
[1743684292699,0.0565158,1768.6,1767.9,5.65622]
[1743684292872,5.65425,1768.6,1767.9,5.65622]
[1743684293072,0.0565158,1768.5,1767.8,5.65648]
[1743684293296,5.6548,1768.5,1767.8,11.36966595]
[1743684293472,3.0,1769.0,1768.3,5.65491]
[1743684293473,5.65295,1769.0,1768.3,5.65491]
[1743684293678,0.0565158,1769.0,1768.3,1.0956]
[1743684294070,1.0137,1770.5,1768.5,3.0]
[1743684294269,0.0565158,1770.3,1769.0,5.65272]
[1743684294569,5.65102,1769.6,1768.9,5.65308]
[1743684294792,5.65234,1769.2,1768.5,5.65437]
[1743684294961,0.0565158,1769.1,1768.6,5.65399]
[1743684295165,5.65103,1769.6,1768.4,40.685]
[1743684295166,0.0565158,1769.2,1768.7,5.65367]
[1743684295400,0.0565158,1769.4,1768.5,5.65448]
[1743684295606,0.0565158,1769.4,1768.8,5.65342]
[1743684295903,5.65195,1769.3,1768.5,7.57811883]
[1743684296073,5.65337,1768.9,1768.3,1.0956]
[1743684296272,5.65469,1768.5,1767.7,1.0956]
[1743684296607,3.0,1768.9,1767.7,1.0956]
[1743684296608,5.65528,1768.3,1767.7,1.0956]
[1743684296778,5.65528,1768.3,1767.7,6.75266]
[1743684296984,5.7114258,1768.4,1767.7,6.75266]
[1743684297299,5.7114258,1768.4,1767.7,1.0956]
[1743684297300,5.65534,1768.3,1767.7,1.0956]
[1743684297462,0.0565158,1768.5,1767.8,0.05655737]
[1743684297663,5.65546,1768.2,1767.4,5.6578]
[1743684297903,5.65387,1768.7,1767.5,5.65766]
[1743684298092,0.0565158,1768.6,1767.7,5.65701]
[1743684298287,0.0565158,1768.6,1768.0,5.65595]
[1743684298523,3.0,1769.0,1768.2,5.71180807]
[1743684298699,5.7100258,1768.9,1768.1,0.055]
[1743684298901,5.65462,1768.5,1768.1,0.055]
[1743684299076,0.0565158,1768.5,1768.1,0.055]
[1743684299601,0.0565158,1768.5,1766.5,10.32185701]
[1743684299602,5.65819,1767.4,1766.7,6.77471]
[1743684299777,5.65866,1767.2,1766.5,4.2340393]
[1743684300103,5.65836,1767.3,1766.7,5.66014]
[1743684300399,0.50444318,1768.4,1767.3,5.65822]
[1743684300572,5.65546,1768.2,1766.8,5.65974]
[1743684300768,5.65776,1767.5,1766.9,5.65962]
[1743684300996,8.65866,1767.2,1767.1,1e-05]
[1743684301191,9.2651758,1767.2,1767.1,1e-05]
[1743684301583,5.66187,1766.2,1766.1,0.05]
[1743684301787,5.66113,1766.5,1766.1,0.05]
[1743684302105,0.02914238,1766.2,1766.1,5.71219]
[1743684302292,0.0565158,1767.2,1766.1,0.05]
[1743684302604,5.65997,1766.8,1766.2,5.66187]
[1743684302807,1.0908,1767.4,1766.1,0.05]
[1743684302808,0.0565158,1766.7,1766.1,0.05]
[1743684302973,0.0565158,1767.2,1766.6,11.32095]
[1743684303305,0.0565158,1767.7,1766.6,1.132095]
[1743684303512,5.65712,1767.7,1767.2,5.65844]
[1743684303808,5.65655,1767.9,1767.3,0.05657679]
[1743684304112,5.65863,1767.3,1766.5,40.701]
[1743684304276,0.0565158,1767.2,1766.4,5.66105]
[1743684304470,0.0565158,1767.5,1766.9,5.65944]
[1743684304674,0.0565158,1767.9,1767.4,5.65775]
[1743684304890,5.7131158,1767.9,1767.3,5.65831]
[1743684305112,0.0565158,1768.0,1767.2,5.65866]
[1743684305312,0.0565158,1768.4,1768.1,5.65561]
[1743684305524,5.65482,1768.4,1766.3,5.66128]
[1743684305825,5.65587,1768.1,1767.2,5.65862]
[1743684306223,0.0565158,1768.1,1767.6,5.65725]
[1743684306387,0.0565158,1768.1,1767.6,5.65717]
[1743684306720,5.65496,1768.4,1767.9,5.65637]
[1743684306922,0.0565158,1768.3,1767.0,1.0509]
[1743684307124,5.65804,1767.4,1767.0,1.0509]
[1743684307342,5.65804,1767.4,1766.5,46.36775]
[1743684307343,0.0565158,1767.3,1766.7,5.6601]
[1743684307499,5.65797,1767.5,1766.9,5.65945]
[1743684307698,0.0565158,1767.6,1767.5,5.6577]
[1743684307898,0.29264085,1768.0,1767.9,5.65642]
[1743684308208,0.0565158,1768.5,1767.8,5.65656]
[1743684308403,0.0565158,1768.5,1766.4,1.0079]
[1743684308404,1.0341,1768.3,1766.4,1.0079]
[1743684308735,5.65899,1767.1,1766.5,5.66076]
[1743684309038,0.0565158,1767.3,1766.5,5.66091]
[1743684309250,5.65981,1766.9,1766.4,1.0079]
[1743684309421,5.66041,1766.7,1766.1,5.71209]
[1743684309606,5.65883,1767.2,1766.5,5.6609]
[1743684309820,5.65952,1767.0,1766.3,5.66147]
[1743684310019,0.0565158,1766.9,1766.1,10.354189]
[1743684310332,5.65751,1767.6,1767.0,5.65905]
[1743684310333,5.7142958,1767.5,1767.0,5.65905]
[1743684310525,5.7146658,1767.4,1766.7,5.66011]
[1743684310845,0.0565158,1767.4,1766.6,5.66057]
[1743684311009,0.6065158,1767.4,1766.5,5.6607]
[1743684311209,5.65869,1767.2,1766.6,5.6603]
[1743684311445,5.65869,1767.2,1766.1,4.692009]
[1743684311446,5.6593,1767.0,1766.1,4.692009]
[1743684311606,8.65642,1767.9,1766.7,5.6601]
[1743684311814,5.6589,1767.2,1766.6,5.66053]
[1743684312015,5.65825,1767.4,1766.7,0.0565953]
[1743684312233,5.6591,1767.1,1766.5,5.66075]
[1743684312436,5.6591,1767.1,1766.2,0.4692009]
[1743684312437,0.0565158,1767.1,1766.2,0.4692009]
[1743684312621,5.6593,1767.0,1766.1,0.05]
[1743684312827,4.6361,1767.2,1766.2,5.66173]
[1743684312828,11.32017,1766.8,1766.2,5.66173]
[1743684313035,5.659,1767.1,1766.5,5.66088]
[1743684313344,5.19003691,1767.3,1767.2,5.65866]
[1743684313571,2.72918786,1768.3,1767.9,5.65617]
[1743684313734,2.72918786,1768.3,1767.0,3.0]
[1743684313735,40.7815158,1768.2,1764.8,16.0]
[1743684313935,5.66219,1766.1,1764.3,1.0586]
[1743684314135,0.0565158,1766.0,1765.1,5.71525]
[1743684314321,0.0565158,1766.0,1765.2,5.66501]
[1743684314649,0.0565158,1766.1,1765.1,0.05]
[1743684314855,5.66271,1766.0,1765.3,5.66462]
[1743684315063,0.0565158,1765.9,1765.4,5.66442]
[1743684315261,0.0565158,1765.9,1765.2,6.78555]
[1743684315435,5.66267,1766.0,1765.4,0.005]
[1743684315643,0.0565158,1766.0,1765.4,0.005]
[1743684315959,0.0565158,1766.4,1765.4,0.005]
[1743684316165,0.0565158,1766.4,1765.9,5.66258]
[1743684316353,5.65962,1766.9,1765.5,5.66385]
[1743684316658,5.66131,1766.4,1765.4,5.66925]
[1743684316858,5.66255,1766.0,1765.4,5.66943]
[1743684317177,5.66337,1765.8,1765.4,0.005]
[1743684317390,5.66155,1766.3,1765.4,0.005]
[1743684317588,0.0565158,1766.6,1766.2,5.66183]
[1743684317772,0.0565158,1766.7,1766.1,11.32395]
[1743684318081,1.0656,1766.4,1765.4,0.005]
[1743684318264,5.66411,1765.5,1765.4,0.005]
[1743684318468,10.27971,1765.5,1765.4,1e-05]
[1743684318648,10.3362258,1765.5,1765.4,1e-05]
[1743684318994,9.7862258,1765.5,1765.4,1e-05]
[1743684319296,10.3362258,1765.5,1765.4,1e-05]
[1743684319594,9.7862258,1765.5,1765.4,1e-05]
[1743684320150,0.0565158,1765.5,1765.4,1e-05]
[1743684320377,9.21411,1765.5,1765.4,1e-05]
[1743684320547,10.3592258,1765.5,1765.4,1e-05]
[1743684320748,5.66508,1765.2,1765.1,1e-05]
[1743684321045,8.7215958,1765.2,1765.1,1e-05]
[1743684321378,1.0696,1766.0,1765.1,5.66541]
[1743684321544,1.0696,1766.0,1765.2,5.66482]
[1743684321545,5.7196458,1765.9,1765.2,5.66482]
[1743684321878,5.66396,1765.6,1765.1,1e-05]
[1743684322076,5.66284,1765.9,1765.3,5.66455]
[1743684322284,0.0565158,1765.8,1765.1,1e-05]
[1743684322481,0.0565158,1766.1,1765.1,5.66539]
[1743684322641,5.66155,1766.4,1765.2,0.566539]
[1743684322846,0.0565158,1766.3,1765.7,5.66342]
[1743684323042,5.66275,1766.0,1765.2,0.566539]
[1743684323245,0.0565158,1765.9,1765.2,5.66492]
[1743684323477,5.66309,1765.9,1765.3,5.66453]
[1743684323684,0.0565158,1766.1,1765.4,0.05664015]
[1743684323885,0.0565158,1766.1,1765.1,1e-05]
[1743684324055,5.7189158,1766.1,1765.5,5.6638]
[1743684324597,5.60100582,1766.2,1765.9,5.66252]
[1743684324800,5.60100582,1766.2,1766.0,0.05662157]
[1743684325077,3.70506535,1766.4,1766.3,5.66155]
[1743684325278,3.70506535,1766.4,1766.2,5.66176]
[1743684325454,3.70506535,1766.4,1765.9,5.66283]
[1743684325662,0.0565158,1766.3,1766.0,5.66239]
[1743684325849,0.0565158,1766.3,1765.2,1.1071]
[1743684326185,3.70506535,1766.4,1766.3,5.66155]
[1743684326487,0.0565158,1767.0,1766.9,5.65962]
[1743684326650,1.1261,1767.4,1766.9,5.65962]
[1743684326651,0.0565158,1767.3,1766.9,5.65962]
[1743684326851,0.0565158,1767.4,1766.3,5.66155]
[1743684327050,1.0941,1767.8,1767.3,5.65834]
[1743684327358,0.05,1767.9,1767.5,5.65755]
[1743684327561,0.05,1767.9,1767.1,5.65898]
[1743684327785,0.05,1767.9,1767.7,5.65701]
[1743684328084,0.05,1767.9,1767.8,5.65674]
[1743684329046,5.70642,1767.9,1767.8,0.05656293]
[1743684329251,0.05,1767.9,1767.4,5.65779]
[1743684329452,0.1065158,1767.9,1767.2,5.65843]
[1743684329671,0.1065158,1767.9,1766.9,6.77806]
[1743684329908,5.6573,1767.7,1767.1,5.65898]
[1743684330115,0.0565158,1767.6,1767.1,5.65886]
[1743684330423,0.0565158,1767.6,1766.5,41.883]
[1743684330711,5.65931,1767.0,1766.5,5.66077]
[1743684330915,5.65931,1767.0,1766.1,5.66202]
[1743684330916,3.0565158,1766.9,1766.1,5.66202]
[1743684331092,5.6605,1766.7,1766.2,5.66179]
[1743684331288,5.66104,1766.5,1765.9,5.66259]
[1743684331493,5.66104,1766.5,1765.6,1.1638]
[1743684331494,5.7180358,1766.4,1765.8,5.66295]
[1743684331795,5.7177458,1766.4,1765.9,5.66267]
[1743684331975,0.0565158,1766.4,1765.9,5.66264]
[1743684332311,0.0565158,1766.4,1765.8,11.3263]
[1743684332617,5.65915,1767.1,1766.5,5.66066]
[1743684332781,0.0565158,1767.0,1766.6,5.66057]
[1743684332975,5.65976,1766.9,1766.4,5.66117]
[1743684333215,0.0565158,1766.8,1766.1,5.66215]
[1743684333510,5.66136,1766.4,1765.9,5.66281]
[1743684333678,0.0565158,1766.3,1765.9,11.32543]
[1743684334079,0.0565158,1766.3,1765.9,5.66262]
[1743684334298,0.0565158,1766.3,1765.9,11.32532]
[1743684334514,5.65886,1767.2,1765.6,6.82749]
[1743684334713,5.66062,1766.6,1765.7,5.66347]
[1743684334885,5.7171358,1766.6,1766.1,5.66201]
[1743684335214,0.0565158,1766.6,1766.2,5.6617]
[1743684335412,0.0565158,1766.7,1766.3,5.71787996]
[1743684335710,0.6065158,1766.7,1765.6,1.1638]
[1743684335912,0.0565158,1766.7,1766.1,5.66191]
[1743684336141,11.3773458,1766.7,1766.1,5.66191]
[1743684336318,5.66072,1766.6,1766.1,5.66191]
[1743684336489,0.0565158,1766.5,1766.1,5.66191]
[1743684336881,5.66029,1766.7,1766.2,5.66179]
[1743684337079,0.0565158,1766.6,1766.1,5.66191]
[1743684337280,0.0565158,1766.6,1766.1,5.66217]
[1743684337481,0.0565158,1766.6,1766.2,5.66187]
[1743684337687,5.66206,1766.2,1765.2,6.2149]
[1743684337886,30.0,1766.0,1765.8,5.66299]
[1743684338083,30.0,1766.0,1765.9,5.71945651]
[1743684338281,30.0,1766.0,1765.9,5.66283]
[1743684338840,1.1583,1766.9,1765.5,5.66406]
[1743684338999,0.0565158,1767.3,1766.9,5.65936]
[1743684339335,5.63227587,1767.4,1767.1,11.31781]
[1743684339483,5.63227587,1767.4,1767.3,5.65834]
[1743684340239,0.1065158,1767.9,1766.9,6.79532]
[1743684340438,0.05,1767.9,1767.7,5.65695]
[1743684340648,0.05,1767.9,1767.5,5.65755]
[1743684340947,0.05,1767.9,1767.6,11.31435]
[1743684341243,0.05,1767.9,1767.8,5.65674]
[1743684341647,0.05,1767.9,1767.4,5.65777]
[1743684341939,0.05,1767.9,1767.1,5.65894]
[1743684342126,5.70643,1767.9,1767.4,5.658]
[1743684342439,0.05,1767.9,1767.3,0.05657269]
[1743684342658,0.05,1767.9,1767.8,5.65674]
[1743684342823,0.05,1767.9,1767.7,5.65706]
[1743684343025,0.05,1767.9,1767.3,40.74]
[1743684343026,0.05,1767.9,1767.5,5.65741]
[1743684343335,0.05,1767.9,1767.7,5.657]
[1743684343537,0.05,1767.9,1767.5,5.65756]
[1743684343728,0.05,1767.9,1767.4,5.65791]
[1743684344112,0.05,1767.9,1767.4,5.71432269]
[1743684344418,0.05,1767.9,1767.5,5.65759]
[1743684344762,0.05,1767.9,1767.7,5.65705]
[1743684344910,0.05,1767.9,1767.8,5.71330151]
[1743684345107,5.66348917,1768.6,1768.2,5.65517]
[1743684345334,0.0565158,1768.5,1768.0,5.65594]
[1743684345611,0.0565158,1768.5,1768.0,11.31179]
[1743684345810,0.0565158,1768.5,1768.2,5.6553]
[1743684346010,5.66348917,1768.6,1767.9,5.65641]
[1743684346308,5.66348917,1768.4,1768.2,5.6552]
[1743684346510,5.66348917,1768.4,1767.8,1.2129]
[1743684346714,5.66348917,1768.4,1768.2,5.65543]
[1743684347052,5.66348917,1768.4,1768.3,5.65514]
[1743684348416,5.66348917,1768.4,1768.3,5.71168109]
[1743684348649,5.66348917,1768.4,1768.3,5.65514]
[1743684348914,5.66348917,1768.4,1768.3,5.71168221]
[1743684349133,0.05,1768.9,1768.8,5.65355]
[1743684350137,3.39522023,1769.4,1768.6,6.89239]
[1743684350346,0.05,1769.9,1769.8,5.65035]
[1743684350530,0.05,1769.9,1769.8,0.05649306]
[1743684350859,0.05,1769.9,1769.4,41.8665]
[1743684351427,0.05,1769.9,1769.8,5.65035]
[1743684352135,0.05,1770.9,1769.8,1.1301]
[1743684352338,0.05,1770.9,1770.7,5.64735]
[1743684352528,0.05,1770.9,1770.8,5.64716]
[1743684353367,0.0565158,1771.8,1770.8,6.84116]
[1743684353565,0.0565158,1771.8,1771.2,5.64588]
[1743684353768,0.05,1771.9,1771.3,5.64556]
[1743684353769,5.7504358,1771.9,1771.3,5.64556]
[1743684354075,0.05,1771.9,1771.8,5.64397]
[1743684354363,0.05,1771.9,1771.7,5.64419]
[1743684354545,0.05,1771.9,1771.3,5.64536]
[1743684354728,0.05,1771.9,1771.5,5.51320596]
[1743684354950,0.05,1771.9,1771.2,40.7]
[1743684355153,5.64167,1772.6,1771.3,9.71557]
[1743684355348,0.1065158,1772.9,1771.8,1.1912]
[1743684355549,0.05,1772.9,1772.3,5.64212]
[1743684355755,0.05,1772.9,1771.8,1.7412]
[1743684356075,0.05,1772.9,1772.0,5.64311]
[1743684356239,5.6408,1772.8,1771.9,5.64365]
[1743684356444,0.05,1772.9,1772.4,5.6418]
[1743684356674,5.69057,1772.9,1772.3,5.64238]
[1743684356861,0.05,1772.9,1771.8,6.83515]
[1743684357062,0.05,1772.9,1772.8,5.64079]
[1743684357373,0.05,1772.9,1772.7,6.88358]
[1743684357585,0.05,1772.9,1772.8,5.64079]
[1743684357941,1.2019,1773.8,1773.2,5.63926]
[1743684358138,0.05,1773.9,1772.9,5.64047]
[1743684358348,5.6873,1773.9,1772.7,4.2425]
[1743684358563,5.6873,1773.9,1772.8,5.64067]
[1743684358564,5.63904,1773.4,1772.8,5.64067]
[1743684358761,5.68742,1773.9,1772.8,5.64054]
[1743684358949,5.63871,1773.5,1772.7,1.2425]
[1743684359164,0.05,1773.9,1772.7,1.2425]
[1743684359351,0.05,1773.9,1772.7,4.2425]
[1743684359552,0.0532158,1774.2,1772.8,6.02425]
[1743684359767,1.1567,1775.0,1773.3,0.55]
[1743684359952,5.63495,1774.7,1773.9,5.63726]
[1743684360154,1.1567,1775.0,1774.2,5.63633]
[1743684360155,6.2874958,1774.9,1774.2,5.63633]
[1743684360354,0.6532158,1774.9,1773.4,40.651]
[1743684360554,5.63786,1773.8,1773.4,40.651]
[1743684360882,5.63744,1773.9,1773.4,40.651]
[1743684361090,0.563744,1773.9,1773.1,1.10606596]
[1743684361312,5.63753,1773.9,1773.3,5.63897]
[1743684361459,5.63729,1773.9,1773.3,5.63909]
[1743684361665,5.63653,1774.2,1773.2,5.63952]
[1743684361968,5.63849,1773.6,1772.9,5.6402]
[1743684362153,5.63796,1773.7,1773.0,5.64014]
[1743684362353,5.63957,1773.2,1772.0,46.27109]
[1743684362577,0.0532158,1773.6,1772.4,5.64206]
[1743684362772,1.2213158,1774.1,1772.3,5.64238]
[1743684362973,1.2213158,1774.1,1772.0,40.628]
[1743684362974,5.63529,1774.6,1773.9,5.63705]
[1743684363188,5.63628,1774.3,1773.3,5.6389]
[1743684363496,5.6896858,1774.2,1773.3,5.63915]
[1743684363656,0.0532158,1774.3,1773.7,5.63778]
[1743684363854,5.63666,1774.1,1773.2,40.628]
[1743684364076,0.6,1774.9,1774.4,5.63557]
[1743684364389,0.6,1774.9,1774.8,5.63443]
[1743684364751,1.16,1776.3,1774.8,1.18322485]
[1743684364948,5.68099,1775.9,1774.5,5.63515]
[1743684365253,6.8824458,1775.8,1774.6,0.05632273]
[1743684365449,1.1978,1775.8,1775.3,5.6327]
[1743684365675,1.1978,1775.8,1775.3,5.63259]
[1743684365987,6.82914,1775.8,1775.1,5.63333]
[1743684366201,1.1978,1775.8,1775.4,5.6325]
[1743684366385,1.1978,1775.8,1775.3,5.63285]
[1743684366546,1.1978,1775.8,1775.3,5.63261]
[1743684366887,5.63189,1775.6,1774.9,5.63412]
[1743684367086,1.1978,1775.8,1774.3,0.55]
[1743684367263,5.63189,1775.6,1774.6,5.63481]
[1743684367475,5.633,1775.3,1774.7,5.63472]
[1743684367679,5.63395,1775.0,1774.3,5.63602]
[1743684367878,5.63544,1774.5,1773.7,1.1922]
[1743684368077,5.63471,1774.8,1773.7,1.1922]
[1743684368278,3.0532158,1774.7,1773.4,40.46995791]
[1743684368477,5.63475,1774.7,1773.5,5.69491521]
[1743684368704,5.63609,1774.3,1773.5,5.63856]
[1743684368905,5.63615,1774.3,1773.6,5.63802]
[1743684369103,5.6893658,1774.3,1773.7,0.05636421]
[1743684369279,0.6200848,1774.3,1773.4,46.10861791]
[1743684369479,11.27489,1773.9,1773.3,5.63902]
[1743684369790,1.1796,1774.0,1773.4,5.63887]
[1743684370019,0.0532158,1773.9,1773.2,5.63936]
[1743684370187,5.63786,1773.8,1773.3,0.05637884]
[1743684370389,5.63874,1773.5,1773.1,0.05]
[1743684370599,5.63903,1773.4,1772.8,5.64077]
[1743684370795,5.63826,1773.6,1772.9,11.2808]
[1743684371028,0.0532158,1773.9,1773.4,5.63888]
[1743684371211,5.50445791,1774.0,1773.4,5.63867]
[1743684371411,5.63744,1773.9,1773.3,5.63918]
[1743684371615,0.0532158,1774.0,1773.5,5.69484313]
[1743684371923,0.0532158,1774.3,1773.6,5.63824]
[1743684372083,5.63808,1773.7,1773.0,5.64001]
[1743684372286,5.6387,1773.5,1772.8,5.64077]
[1743684372521,5.63824,1773.7,1773.0,5.63999]
[1743684372724,5.63852,1773.6,1773.0,5.63999]
[1743684372927,5.63872,1773.5,1773.1,0.0563852]
[1743684373129,5.64002,1773.1,1772.7,40.59]
[1743684373425,5.64049,1772.9,1772.3,5.64237]
[1743684373754,0.0532158,1772.8,1772.1,0.05]
[1743684374022,5.64114,1772.7,1772.1,5.69302]
[1743684374188,8.63985,1773.1,1772.1,5.69302]
[1743684374189,5.64208,1772.4,1772.1,0.05]
[1743684374385,0.0532158,1772.4,1772.1,0.05]
[1743684374608,5.6953958,1772.4,1772.1,0.05]
[1743684374814,5.6427,1772.2,1772.1,0.05]
[1743684375039,5.6953258,1772.4,1772.1,0.05]